fUST/lending_fUST_20250531
["ID","MTS","AMOUNT","RATE_DAILY","PERIOD"]
[363263111,1748653842971,-501.31626111,0.00016932,2]
[363263113,1748653842981,-245.0,0.00016942,2]
[363263115,1748653842990,-500.0,0.00016959,2]
[363263117,1748653842999,-500.0,0.00016959,2]
[363263138,1748653843196,-2200.0,0.00016972,2]
[363263141,1748653843212,-373.4,0.00016986,2]
[363263143,1748653843221,-425.81570145,0.00016986,2]
[363263145,1748653843230,-430.0,0.00016986,2]
[363263147,1748653843239,-430.0,0.00016986,2]
[363263149,1748653843248,-430.0,0.00016986,2]
[363263151,1748653843260,-310.16610973,0.00016986,2]
[363263153,1748653843269,-367.90819819,0.00016986,2]
[363263155,1748653843279,-430.0,0.00016986,2]
[363263157,1748653843288,-430.0,0.00016986,2]
[363263159,1748653843297,-430.0,0.00016986,2]
[363263161,1748653843308,-430.0,0.00016986,2]
[363263163,1748653843317,-430.0,0.00016986,2]
[363263165,1748653843328,-430.0,0.00016986,2]
[363263167,1748653843337,-430.0,0.00016986,2]
[363263169,1748653843346,-430.0,0.00016986,2]
[363263171,1748653843355,-430.0,0.00016986,2]
[363263173,1748653843364,-190.68631319,0.00016986,2]
[363263175,1748653843373,-430.0,0.00016986,2]
[363263177,1748653843382,-430.0,0.00016986,2]
[363263179,1748653843391,-430.0,0.00016986,2]
[363263181,1748653843401,-430.0,0.00016986,2]
[363263183,1748653843410,-503.21,0.00016986,2]
[363263185,1748653843419,-474.14066462,0.00016986,2]
[363263187,1748653843428,-330.15521144,0.00016986,2]
[363263189,1748653843437,-430.0,0.00016986,2]
[363263191,1748653843446,-1462.31,0.00016986,2]
[363263193,1748653843456,-523.88,0.00016986,2]
[363263195,1748653843465,-1158.7,0.00016986,2]
[363263197,1748653843474,-430.0,0.00016986,2]
[363263199,1748653843484,-1603.86,0.00016986,2]
[363263201,1748653843493,-1387.09,0.00016986,2]
[363263203,1748653843503,-430.0,0.00016986,2]
[363263204,1748653843517,-430.0,0.00016986,2]
[363263207,1748653843526,-1013.57,0.00016986,2]
[363263209,1748653843535,-430.0,0.00016986,2]
[363263211,1748653843545,-471.53,0.00016986,2]
[363263213,1748653843554,-430.0,0.00016986,2]
[363263215,1748653843564,-2096.09,0.00016986,2]
[363263217,1748653843576,-2709.14,0.00016986,2]
[363263219,1748653843586,-430.0,0.00016986,2]
[363263221,1748653843596,-430.0,0.00016986,2]
[363263223,1748653843607,-430.0,0.00016986,2]
[363263224,1748653843616,-430.0,0.00016986,2]
[363263226,1748653843626,-430.0,0.00016986,2]
[363263229,1748653843636,-430.0,0.00016986,2]
[363263231,1748653843646,-430.0,0.00016986,2]
[363263233,1748653843656,-715.54,0.00016986,2]
[363263235,1748653843666,-503.1,0.00016986,2]
[363263236,1748653843675,-430.0,0.00016986,2]
[363263238,1748653843685,-430.0,0.00016986,2]
[363263240,1748653843694,-552.88,0.00016986,2]
[363263242,1748653843704,-529.04,0.00016986,2]
[363263244,1748653843713,-604.28,0.00016986,2]
[363263246,1748653843723,-1145.8,0.00016986,2]
[363263248,1748653843732,-2079.32,0.00016986,2]
[363263250,1748653843741,-430.0,0.00016986,2]
[363263252,1748653843751,-430.0,0.00016986,2]
[363263254,1748653843766,-2386.15,0.00016986,2]
[363263256,1748653843776,-430.0,0.00016986,2]
[363263258,1748653843786,-1153.58,0.00016986,2]
[363263260,1748653843795,-430.0,0.00016986,2]
[363263262,1748653843805,-792.23,0.00016986,2]
[363263264,1748653843814,-430.0,0.00016986,2]
[363263266,1748653843823,-430.0,0.00016986,2]
[363263268,1748653843832,-894.41,0.00016986,2]
[363263270,1748653843841,-3157.2,0.00016986,2]
[363263272,1748653843850,-430.0,0.00016986,2]
[363263274,1748653843859,-430.0,0.00016986,2]
[363263276,1748653843868,-1285.4,0.00016986,2]
[363263278,1748653843878,-430.0,0.00016986,2]
[363263280,1748653843887,-430.0,0.00016986,2]
[363263282,1748653843896,-1648.26,0.00016986,2]
[363263284,1748653843905,-430.0,0.00016986,2]
[363263286,1748653843914,-430.0,0.00016986,2]
[363263288,1748653843923,-457.62,0.00016986,2]
[363263290,1748653843933,-1150.6,0.00016986,2]
[363263292,1748653843942,-430.0,0.00016986,2]
[363263294,1748653843951,-430.0,0.00016986,2]
[363263296,1748653843961,-1338.1,0.00016986,2]
[363263297,1748653843970,-430.0,0.00016986,2]
[363263299,1748653843980,-971.32,0.00016986,2]
[363263301,1748653843989,-430.0,0.00016986,2]
[363263304,1748653843999,-430.0,0.00016986,2]
[363263305,1748653844012,-430.0,0.00016986,2]
[363263307,1748653844021,-2574.92,0.00016986,2]
[363263309,1748653844030,-430.0,0.00016986,2]
[363263311,1748653844040,-478.91,0.00016986,2]
[363263313,1748653844049,-430.0,0.00016986,2]
[363263315,1748653844059,-4385.46757746,0.00017141,2]
[363263317,1748653844068,-151.0,0.00017178,2]
[363263319,1748653844077,-151.0,0.00017178,2]
[363263321,1748653844086,-151.0,0.00017178,2]
[363263323,1748653844095,-152.38245128,0.00017178,2]
[363263325,1748653844104,-151.64839682,0.00017178,2]
[363263327,1748653844113,-152.87529213,0.00017178,2]
[363263329,1748653844123,-246.43046613,0.00017205,2]
[363263331,1748653844135,-151.0,0.00017205,2]
[363263333,1748653844144,-151.0,0.00017205,2]
[363263335,1748653844153,-246.10380235,0.00017233,2]
[363263337,1748653844163,-151.0,0.00017233,2]
[363263339,1748653844172,-151.0,0.00017259,2]
[363263341,1748653844182,-151.0,0.00017259,2]
[363263343,1748653844191,-430.0,0.0001726,2]
[363263345,1748653844200,-430.0,0.0001726,2]
[363263347,1748653844211,-569.06293867,0.0001726,2]
[363263349,1748653844220,-430.0,0.0001726,2]
[363263351,1748653844229,-430.0,0.0001726,2]
[363263353,1748653844239,-430.0,0.0001726,2]
[363263355,1748653844247,-430.0,0.0001726,2]
[363263357,1748653844256,-430.0,0.0001726,2]
[363263359,1748653844270,-430.0,0.0001726,2]
[363263361,1748653844279,-430.0,0.0001726,2]
[363263363,1748653844288,-398.17632081,0.0001726,2]
[363263365,1748653844297,-430.0,0.0001726,2]
[363263367,1748653844306,-544.6,0.0001726,2]
[363263369,1748653844315,-1462.31,0.0001726,2]
[363263371,1748653844325,-523.88,0.0001726,2]
[363263373,1748653844334,-1158.7,0.0001726,2]
[363263375,1748653844344,-1603.86,0.0001726,2]
[363263377,1748653844353,-1387.09,0.0001726,2]
[363263379,1748653844362,-430.0,0.0001726,2]
[363263381,1748653844371,-430.0,0.0001726,2]
[363263383,1748653844380,-1013.57,0.0001726,2]
[363263385,1748653844390,-430.0,0.0001726,2]
[363263387,1748653844399,-471.53,0.0001726,2]
[363263389,1748653844408,-430.0,0.0001726,2]
[363263391,1748653844417,-2096.09,0.0001726,2]
[363263393,1748653844427,-2709.14,0.0001726,2]
[363263395,1748653844436,-430.0,0.0001726,2]
[363263397,1748653844445,-430.0,0.0001726,2]
[363263399,1748653844455,-430.0,0.0001726,2]
[363263401,1748653844465,-430.0,0.0001726,2]
[363263403,1748653844474,-430.0,0.0001726,2]
[363263405,1748653844483,-430.0,0.0001726,2]
[363263407,1748653844492,-430.0,0.0001726,2]
[363263409,1748653844501,-715.54,0.0001726,2]
[363263411,1748653844514,-503.1,0.0001726,2]
[363263413,1748653844523,-430.0,0.0001726,2]
[363263415,1748653844533,-430.0,0.0001726,2]
[363263417,1748653844542,-552.88,0.0001726,2]
[363263419,1748653844552,-604.28,0.0001726,2]
[363263421,1748653844561,-1145.8,0.0001726,2]
[363263423,1748653844570,-2079.32,0.0001726,2]
[363263425,1748653844580,-430.0,0.0001726,2]
[363263427,1748653844590,-430.0,0.0001726,2]
[363263429,1748653844599,-2386.15,0.0001726,2]
[363263431,1748653844608,-430.0,0.0001726,2]
[363263433,1748653844617,-1153.58,0.0001726,2]
[363263435,1748653844626,-430.0,0.0001726,2]
[363263437,1748653844636,-792.23,0.0001726,2]
[363263439,1748653844645,-430.0,0.0001726,2]
[363263441,1748653844654,-430.0,0.0001726,2]
[363263443,1748653844663,-894.41,0.0001726,2]
[363263445,1748653844673,-3157.2,0.0001726,2]
[363263447,1748653844682,-430.0,0.0001726,2]
[363263449,1748653844691,-430.0,0.0001726,2]
[363263450,1748653844700,-1285.4,0.0001726,2]
[363263453,1748653844710,-430.0,0.0001726,2]
[363263455,1748653844719,-430.0,0.0001726,2]
[363263457,1748653844729,-1648.26,0.0001726,2]
[363263459,1748653844740,-430.0,0.0001726,2]
[363263461,1748653844750,-430.0,0.0001726,2]
[363263463,1748653844764,-457.62,0.0001726,2]
[363263465,1748653844773,-1150.6,0.0001726,2]
[363263467,1748653844782,-430.0,0.0001726,2]
[363263468,1748653844792,-1338.1,0.0001726,2]
[363263470,1748653844801,-430.0,0.0001726,2]
[363263472,1748653844810,-971.32,0.0001726,2]
[363263474,1748653844819,-430.0,0.0001726,2]
[363263476,1748653844829,-430.0,0.0001726,2]
[363263478,1748653844838,-430.0,0.0001726,2]
[363263480,1748653844848,-2574.92,0.0001726,2]
[363263482,1748653844860,-430.0,0.0001726,2]
[363263484,1748653844869,-478.91,0.0001726,2]
[363263486,1748653844878,-430.0,0.0001726,2]
[363263488,1748653844888,-151.0,0.0001726,2]
[363263491,1748653844903,-189.87273758,0.00017288,2]
[363263493,1748653844912,-160.0,0.00017386,2]
[363263495,1748653844921,-160.0,0.00017386,2]
[363263497,1748653844931,-160.0,0.00017386,2]
[363263499,1748653844940,-160.0,0.00017386,2]
[363263501,1748653844949,-842.5625,0.00017386,2]
[363263503,1748653844958,-423.39538199,0.00017386,2]
[363263505,1748653844967,-229.30959854,0.00017386,2]
[363263507,1748653844977,-160.0,0.00017386,2]
[363263509,1748653844986,-160.0,0.00017386,2]
[363263511,1748653844995,-12663.11115519,0.00017386,2]
[363263513,1748653845004,-212.7380601,0.00017386,2]
[363263515,1748653845017,-160.0,0.00017393,2]
[363263517,1748653845026,-160.0,0.00017393,2]
[363263519,1748653845035,-1000.0,0.00017439,2]
[363263521,1748653845044,-1000.0,0.00017439,2]
[363263523,1748653845053,-4385.46757746,0.00017452,2]
[363263525,1748653845064,-276.720658,0.00017534,2]
[363263527,1748653845074,-276.720658,0.00017534,2]
[363263529,1748653845083,-151.0,0.00017534,2]
[363263531,1748653845092,-151.0,0.00017534,2]
[363263533,1748653845102,-151.0,0.00017534,2]
[363263535,1748653845111,-480.197686,0.00017534,2]
[363263537,1748653845124,-480.197686,0.00017534,2]
[363263539,1748653845133,-151.0,0.00017534,2]
[363263541,1748653845142,-430.0,0.00017534,2]
[363263543,1748653845151,-430.0,0.00017534,2]
[363263545,1748653845161,-430.0,0.00017534,2]
[363263547,1748653845171,-430.0,0.00017534,2]
[363263549,1748653845180,-430.0,0.00017534,2]
[363263551,1748653845190,-430.0,0.00017534,2]
[363263553,1748653845200,-430.0,0.00017534,2]
[363263555,1748653845210,-430.0,0.00017534,2]
[363263557,1748653845219,-430.0,0.00017534,2]
[363263560,1748653845228,-430.0,0.00017534,2]
[363263562,1748653845237,-1462.31,0.00017534,2]
[363263564,1748653845247,-523.88,0.00017534,2]
[363263566,1748653845256,-1158.7,0.00017534,2]
[363263568,1748653845268,-1603.86,0.00017534,2]
[363263570,1748653845277,-1387.09,0.00017534,2]
[363263572,1748653845288,-430.0,0.00017534,2]
[363263574,1748653845297,-430.0,0.00017534,2]
[363263576,1748653845306,-1013.57,0.00017534,2]
[363263578,1748653845316,-430.0,0.00017534,2]
[363263580,1748653845326,-471.53,0.00017534,2]
[363263583,1748653845335,-430.0,0.00017534,2]
[363263585,1748653845344,-2096.09,0.00017534,2]
[363263587,1748653845353,-2709.14,0.00017534,2]
[363263589,1748653845363,-430.0,0.00017534,2]
[363263591,1748653845372,-430.0,0.00017534,2]
[363263593,1748653845381,-430.0,0.00017534,2]
[363263595,1748653845390,-430.0,0.00017534,2]
[363263597,1748653845398,-430.0,0.00017534,2]
[363263599,1748653845407,-430.0,0.00017534,2]
[363263601,1748653845416,-430.0,0.00017534,2]
[363263603,1748653845426,-715.54,0.00017534,2]
[363263605,1748653845435,-503.1,0.00017534,2]
[363263607,1748653845444,-430.0,0.00017534,2]
[363263609,1748653845454,-430.0,0.00017534,2]
[363263611,1748653845464,-552.88,0.00017534,2]
[363263613,1748653845474,-604.28,0.00017534,2]
[363263615,1748653845483,-1145.8,0.00017534,2]
[363263617,1748653845491,-267.31633703,0.00017534,2]
[363263619,1748653845500,-2079.32,0.00017534,2]
[363263621,1748653845510,-430.0,0.00017534,2]
[363263623,1748653845521,-2386.15,0.00017534,2]
[363263625,1748653845530,-430.0,0.00017534,2]
[363263627,1748653845539,-1153.58,0.00017534,2]
[363263629,1748653845549,-430.0,0.00017534,2]
[363263631,1748653845558,-792.23,0.00017534,2]
[363263633,1748653845568,-208.56947152,0.00017534,2]
[363263635,1748653845577,-430.0,0.00017534,2]
[363263637,1748653845587,-894.41,0.00017534,2]
[363263639,1748653845597,-3157.2,0.00017534,2]
[363263641,1748653845606,-360.18,0.00017534,2]
[363263643,1748653845615,-430.0,0.00017534,2]
[363263645,1748653845625,-1285.4,0.00017534,2]
[363263647,1748653845634,-430.0,0.00017534,2]
[363263649,1748653845643,-430.0,0.00017534,2]
[363263651,1748653845651,-1648.26,0.00017534,2]
[363263653,1748653845661,-430.0,0.00017534,2]
[363263655,1748653845670,-430.0,0.00017534,2]
[363263657,1748653845679,-457.62,0.00017534,2]
[363263659,1748653845688,-1150.6,0.00017534,2]
[363263661,1748653845698,-430.0,0.00017534,2]
[363263663,1748653845707,-1338.1,0.00017534,2]
[363263665,1748653845716,-430.0,0.00017534,2]
[363263667,1748653845726,-971.32,0.00017534,2]
[363263669,1748653845735,-430.0,0.00017534,2]
[363263671,1748653845744,-430.0,0.00017534,2]
[363263673,1748653845753,-430.0,0.00017534,2]
[363263675,1748653845766,-2574.92,0.00017534,2]
[363263676,1748653845776,-430.0,0.00017534,2]
[363263678,1748653845785,-478.91,0.00017534,2]
[363263680,1748653845795,-430.0,0.00017534,2]
[363263682,1748653845806,-500.0,0.00017603,2]
[363263684,1748653845815,-4527.26309224,0.00017697,2]
[363263686,1748653845824,-4385.46757746,0.00017762,2]
[363263688,1748653845834,-151.0,0.00017767,2]
[363263690,1748653845842,-457.8154409,0.00017808,2]
[363263692,1748653845852,-430.0,0.00017808,2]
[363263694,1748653845861,-430.0,0.00017808,2]
[363263696,1748653845871,-430.0,0.00017808,2]
[363263698,1748653845880,-430.0,0.00017808,2]
[363263700,1748653845890,-430.0,0.00017808,2]
[363263702,1748653845899,-430.0,0.00017808,2]
[363263704,1748653845909,-430.0,0.00017808,2]
[363263706,1748653845918,-345.7405087,0.00017808,2]
[363263708,1748653845928,-430.0,0.00017808,2]
[363263710,1748653845937,-1462.31,0.00017808,2]
[363263712,1748653845946,-523.88,0.00017808,2]
[363263713,1748653845955,-1158.7,0.00017808,2]
[363263714,1748653845964,-1603.86,0.00017808,2]
[363263715,1748653845973,-1387.09,0.00017808,2]
[363263716,1748653845980,-535.88654576,0.00017808,2]
[363263717,1748653845988,-430.0,0.00017808,2]
[363263718,1748653845997,-1013.57,0.00017808,2]
[363263719,1748653846006,-430.0,0.00017808,2]
[363263720,1748653846019,-471.53,0.00017808,2]
[363263721,1748653846028,-430.0,0.00017808,2]
[363263722,1748653846037,-2096.09,0.00017808,2]
[363263723,1748653846046,-2709.14,0.00017808,2]
[363263724,1748653846055,-430.0,0.00017808,2]
[363263725,1748653846064,-430.0,0.00017808,2]
[363263726,1748653846073,-430.0,0.00017808,2]
[363263727,1748653846082,-430.0,0.00017808,2]
[363263728,1748653846091,-430.0,0.00017808,2]
[363263729,1748653846100,-430.0,0.00017808,2]
[363263730,1748653846108,-430.0,0.00017808,2]
[363263731,1748653846116,-715.54,0.00017808,2]
[363263732,1748653846126,-503.1,0.00017808,2]
[363263733,1748653846136,-430.0,0.00017808,2]
[363263734,1748653846145,-430.0,0.00017808,2]
[363263735,1748653846154,-552.88,0.00017808,2]
[363263736,1748653846163,-604.28,0.00017808,2]
[363263737,1748653846173,-1145.8,0.00017808,2]
[363263739,1748653846183,-2079.32,0.00017808,2]
[363263755,1748653846324,-430.0,0.00017808,2]
[363263757,1748653846334,-2386.15,0.00017808,2]
[363263759,1748653846343,-430.0,0.00017808,2]
[363263761,1748653846353,-1153.58,0.00017808,2]
[363263763,1748653846362,-430.0,0.00017808,2]
[363263765,1748653846370,-792.23,0.00017808,2]
[363263767,1748653846379,-430.0,0.00017808,2]
[363263769,1748653846388,-894.41,0.00017808,2]
[363263771,1748653846398,-3157.2,0.00017808,2]
[363263772,1748653846408,-430.0,0.00017808,2]
[363263774,1748653846417,-1285.4,0.00017808,2]
[363263776,1748653846427,-430.0,0.00017808,2]
[363263778,1748653846437,-430.0,0.00017808,2]
[363263780,1748653846447,-1648.26,0.00017808,2]
[363263782,1748653846457,-185.47,0.00017808,2]
[363263784,1748653846467,-430.0,0.00017808,2]
[363263786,1748653846476,-457.62,0.00017808,2]
[363263788,1748653846486,-1150.6,0.00017808,2]
[363263790,1748653846496,-430.0,0.00017808,2]
[363263792,1748653846505,-1338.1,0.00017808,2]
[363263794,1748653846521,-430.0,0.00017808,2]
[363263796,1748653846531,-971.32,0.00017808,2]
[363263798,1748653846540,-430.0,0.00017808,2]
[363263800,1748653846549,-430.0,0.00017808,2]
[363263802,1748653846558,-430.0,0.00017808,2]
[363263804,1748653846568,-2574.92,0.00017808,2]
[363263806,1748653846578,-430.0,0.00017808,2]
[363263808,1748653846587,-478.91,0.00017808,2]
[363263810,1748653846597,-430.0,0.00017808,2]
[363263812,1748653846607,-587.0,0.00017837,2]
[363263814,1748653846616,-587.0,0.00017838,2]
[363263816,1748653846626,-207.4,0.00017985,2]
[363263818,1748653846635,-300.0,0.00017985,2]
[363263820,1748653846644,-300.0,0.00017985,2]
[363263822,1748653846654,-300.0,0.00017985,2]
[363263824,1748653846663,-300.0,0.00017985,2]
[363263826,1748653846673,-5000.0,0.00017985,2]
[363263828,1748653846682,-300.0,0.00017985,2]
[363263829,1748653846692,-300.0,0.00017985,2]
[363263831,1748653846701,-300.0,0.00017985,2]
[363263833,1748653846710,-300.0,0.00017985,2]
[363263835,1748653846720,-300.0,0.00017985,2]
[363263837,1748653846729,-300.0,0.00017985,2]
[363263839,1748653846739,-300.0,0.00017985,2]
[363263841,1748653846748,-300.0,0.00017985,2]
[363263843,1748653846758,-300.0,0.00017985,2]
[363263845,1748653846771,-300.0,0.00017985,2]
[363263847,1748653846783,-300.0,0.00017985,2]
[363263849,1748653846792,-1500.0,0.00017987,2]
[363263851,1748653846802,-783.84554442,0.00017987,2]
[363263853,1748653846811,-2200.0,0.00018068,2]
[363263855,1748653846821,-190.6,0.00018068,2]
[363263857,1748653846831,-190.6,0.00018068,2]
[363263859,1748653846841,-190.6,0.00018068,2]
[363263861,1748653846851,-190.6,0.00018068,2]
[363263863,1748653846859,-190.6,0.00018068,2]
[363263865,1748653846869,-190.6,0.00018068,2]
[363263867,1748653846879,-190.6,0.00018068,2]
[363263869,1748653846888,-190.6,0.00018068,2]
[363263871,1748653846899,-190.6,0.00018068,2]
[363263873,1748653846911,-276.720658,0.00018068,2]
[363263875,1748653846921,-276.720658,0.00018068,2]
[363263877,1748653846930,-151.0,0.00018068,2]
[363263879,1748653846939,-480.197686,0.00018068,2]
[363263881,1748653846948,-480.197686,0.00018068,2]
[363263883,1748653846957,-151.0,0.00018068,2]
[363263885,1748653846966,-151.0,0.00018072,2]
[363263887,1748653846976,-4385.46757746,0.00018072,2]
[363263889,1748653846985,-151.0,0.00018082,2]
[363263891,1748653846994,-430.0,0.00018082,2]
[363263893,1748653847003,-430.0,0.00018082,2]
[363263895,1748653847016,-430.0,0.00018082,2]
[363263897,1748653847026,-430.0,0.00018082,2]
[363263899,1748653847035,-544.61908698,0.00018082,2]
[363263901,1748653847045,-430.0,0.00018082,2]
[363263903,1748653847054,-430.0,0.00018082,2]
[363263905,1748653847063,-1462.31,0.00018082,2]
[363263907,1748653847072,-523.88,0.00018082,2]
[363263909,1748653847081,-1158.7,0.00018082,2]
[363263910,1748653847091,-1603.86,0.00018082,2]
[363263912,1748653847100,-1387.09,0.00018082,2]
[363263914,1748653847110,-430.0,0.00018082,2]
[363263916,1748653847121,-1013.57,0.00018082,2]
[363263918,1748653847134,-430.0,0.00018082,2]
[363263920,1748653847144,-471.53,0.00018082,2]
[363263922,1748653847154,-430.0,0.00018082,2]
[363263924,1748653847165,-2096.09,0.00018082,2]
[363263926,1748653847175,-2709.14,0.00018082,2]
[363263928,1748653847184,-430.0,0.00018082,2]
[363263930,1748653847193,-430.0,0.00018082,2]
[363263932,1748653847206,-430.0,0.00018082,2]
[363263934,1748653847216,-430.0,0.00018082,2]
[363263936,1748653847225,-368.99383404,0.00018082,2]
[363263938,1748653847235,-430.0,0.00018082,2]
[363263940,1748653847245,-430.0,0.00018082,2]
[363263942,1748653847254,-715.54,0.00018082,2]
[363263944,1748653847267,-503.1,0.00018082,2]
[363263946,1748653847278,-430.0,0.00018082,2]
[363263948,1748653847288,-430.0,0.00018082,2]
[363263951,1748653847299,-552.88,0.00018082,2]
[363263953,1748653847309,-604.28,0.00018082,2]
[363263955,1748653847319,-1145.8,0.00018082,2]
[363263957,1748653847329,-2079.32,0.00018082,2]
[363263959,1748653847338,-430.0,0.00018082,2]
[363263961,1748653847348,-2386.15,0.00018082,2]
[363263963,1748653847357,-430.0,0.00018082,2]
[363263965,1748653847367,-1153.58,0.00018082,2]
[363263967,1748653847376,-430.0,0.00018082,2]
[363263969,1748653847386,-792.23,0.00018082,2]
[363263971,1748653847395,-430.0,0.00018082,2]
[363263973,1748653847404,-894.41,0.00018082,2]
[363263975,1748653847413,-3157.2,0.00018082,2]
[363263977,1748653847423,-1285.4,0.00018082,2]
[363263978,1748653847432,-430.0,0.00018082,2]
[363263980,1748653847441,-430.0,0.00018082,2]
[363263983,1748653847451,-1648.26,0.00018082,2]
[363263985,1748653847460,-430.0,0.00018082,2]
[363263987,1748653847469,-457.62,0.00018082,2]
[363263988,1748653847478,-1150.6,0.00018082,2]
[363263990,1748653847488,-430.0,0.00018082,2]
[363263992,1748653847497,-1338.1,0.00018082,2]
[363263994,1748653847507,-430.0,0.00018082,2]
[363263996,1748653847520,-971.32,0.00018082,2]
[363263998,1748653847530,-430.0,0.00018082,2]
[363264000,1748653847539,-430.0,0.00018082,2]
[363264002,1748653847549,-430.0,0.00018082,2]
[363264004,1748653847558,-2574.92,0.00018082,2]
[363264006,1748653847568,-430.0,0.00018082,2]
[363264008,1748653847578,-478.91,0.00018082,2]
[363264010,1748653847587,-430.0,0.00018082,2]
[363264012,1748653847597,-157.5499743,0.00018082,2]
[363264014,1748653847606,-157.5499743,0.00018219,2]
[363264016,1748653847615,-596.33933458,0.00018344,2]
[363264018,1748653847625,-418.13,0.00018356,2]
[363264020,1748653847634,-430.0,0.00018356,2]
[363264022,1748653847643,-430.0,0.00018356,2]
[363264024,1748653847653,-430.0,0.00018356,2]
[363264026,1748653847663,-430.0,0.00018356,2]
[363264028,1748653847672,-430.0,0.00018356,2]
[363264030,1748653847682,-1462.31,0.00018356,2]
[363264032,1748653847692,-523.88,0.00018356,2]
[363264034,1748653847701,-1158.7,0.00018356,2]
[363264036,1748653847711,-1603.86,0.00018356,2]
[363264039,1748653847721,-1387.09,0.00018356,2]
[363264040,1748653847731,-430.0,0.00018356,2]
[363264042,1748653847740,-1013.57,0.00018356,2]
[363264044,1748653847749,-430.0,0.00018356,2]
[363264046,1748653847759,-471.53,0.00018356,2]
[363264048,1748653847772,-430.0,0.00018356,2]
[363264050,1748653847782,-2096.09,0.00018356,2]
[363264052,1748653847792,-2709.14,0.00018356,2]
[363264054,1748653847801,-430.0,0.00018356,2]
[363264056,1748653847811,-430.0,0.00018356,2]
[363264058,1748653847820,-430.0,0.00018356,2]
[363264060,1748653847829,-430.0,0.00018356,2]
[363264062,1748653847839,-430.0,0.00018356,2]
[363264064,1748653847848,-430.0,0.00018356,2]
[363264066,1748653847857,-715.54,0.00018356,2]
[363264068,1748653847867,-503.1,0.00018356,2]
[363264070,1748653847877,-430.0,0.00018356,2]
[363264072,1748653847887,-545.39,0.00018356,2]
[363264074,1748653847896,-552.88,0.00018356,2]
[363264076,1748653847906,-604.28,0.00018356,2]
[363264078,1748653847917,-1145.8,0.00018356,2]
[363264080,1748653847926,-2079.32,0.00018356,2]
[363264082,1748653847936,-430.0,0.00018356,2]
[363264084,1748653847947,-2386.15,0.00018356,2]
[363264086,1748653847957,-430.0,0.00018356,2]
[363264088,1748653847965,-1153.58,0.00018356,2]
[363264090,1748653847975,-430.0,0.00018356,2]
[363264092,1748653847984,-792.23,0.00018356,2]
[363264094,1748653847994,-430.0,0.00018356,2]
[363264096,1748653848004,-894.41,0.00018356,2]
[363264098,1748653848019,-3157.2,0.00018356,2]
[363264100,1748653848030,-1285.4,0.00018356,2]
[363264102,1748653848040,-430.0,0.00018356,2]
[363264104,1748653848051,-430.0,0.00018356,2]
[363264106,1748653848061,-1648.26,0.00018356,2]
[363264108,1748653848071,-430.0,0.00018356,2]
[363264110,1748653848081,-457.62,0.00018356,2]
[363264112,1748653848091,-1150.6,0.00018356,2]
[363264114,1748653848101,-430.0,0.00018356,2]